fUST/lending_fUST_20250817
["ID","MTS","AMOUNT","RATE_DAILY","PERIOD"]
[379688032,1755370244933,-480.0,0.00020567,2]
[379688033,1755370244942,-480.0,0.00020567,2]
[379688034,1755370244952,-480.0,0.00020567,2]
[379688035,1755370244961,-480.0,0.00020567,2]
[379688036,1755370244971,-480.0,0.00020567,2]
[379688037,1755370244980,-1898.22,0.00020567,2]
[379688038,1755370244989,-480.0,0.00020567,2]
[379688039,1755370244999,-460.16798472,0.00020567,2]
[379688040,1755370245009,-480.0,0.00020567,2]
[379688041,1755370245018,-480.0,0.00020567,2]
[379688042,1755370245028,-480.0,0.00020567,2]
[379688043,1755370245037,-460.14822663,0.00020567,2]
[379688044,1755370245046,-480.0,0.00020567,2]
[379688045,1755370245055,-164.92780934,0.00020567,2]
[379688046,1755370245064,-2095.8,0.00020567,2]
[379688047,1755370245073,-480.0,0.00020567,2]
[379688048,1755370245083,-480.0,0.00020567,2]
[379688049,1755370245092,-480.0,0.00020567,2]
[379688050,1755370245101,-460.0,0.00020567,2]
[379688051,1755370245110,-151.0,0.00020567,2]
[379688052,1755370245120,-151.0,0.00020567,2]
[379688053,1755370245129,-480.0,0.00020567,2]
[379688054,1755370245139,-480.0,0.00020567,2]
[379688055,1755370245148,-480.0,0.00020567,2]
[379688056,1755370245157,-151.0,0.00020567,2]
[379688057,1755370245167,-151.0,0.00020567,2]
[379688058,1755370245177,-480.0,0.00020567,2]
[379688059,1755370245187,-500.32,0.00020567,2]
[379688060,1755370245196,-728.74,0.00020567,2]
[379688061,1755370245205,-500.0,0.00020567,2]
[379688062,1755370245214,-500.0,0.00020567,2]
[379688063,1755370245224,-500.0,0.00020567,2]
[379688064,1755370245233,-647.28,0.00020567,2]
[379688065,1755370245243,-9547.4,0.00020567,2]
[379688066,1755370245252,-480.0,0.00020567,2]
[379688067,1755370245265,-815.22,0.00020567,2]
[379688068,1755370245275,-500.0,0.00020567,2]
[379688069,1755370245284,-500.0,0.00020567,2]
[379688070,1755370245294,-380.88177822,0.00020567,2]
[379688071,1755370245305,-480.0,0.00020567,2]
[379688072,1755370245314,-151.0,0.00020567,2]
[379688073,1755370245324,-151.0,0.00020567,2]
[379688074,1755370245333,-187.24,0.00020567,2]
[379688075,1755370245343,-151.0,0.00020568,2]
[379688076,1755370245354,-462.80710685,0.00020568,2]
[379688077,1755370245364,-480.0,0.00020568,2]
[379688078,1755370245373,-480.0,0.00020568,2]
[379688079,1755370245382,-480.0,0.00020568,2]
[379688080,1755370245392,-480.0,0.00020568,2]
[379688081,1755370245403,-480.0,0.00020568,2]
[379688082,1755370245412,-883.54,0.00020568,2]
[379688083,1755370245423,-480.0,0.00020568,2]
[379688084,1755370245432,-480.0,0.00020568,2]
[379688085,1755370245441,-10.55354956,0.00020568,2]
[379688098,1755370246012,-10215.698145,0.00020268,2]
[379688099,1755370246041,-45000.50821581,0.00020268,2]
[379688100,1755370246059,-23538.0,0.00020268,2]
[379688101,1755370246071,-450.00000001,0.00020268,2]
[379688107,1755370246488,-324.65567513,0.00020268,2]
[379688108,1755370246499,-322.34432487,0.00020268,2]
[379688109,1755370246510,-45148.79363918,0.00020268,2]
[379688110,1755370246519,-933.8,0.00020366,2]
[379688111,1755370246529,-480.0,0.00020468,2]
[379688112,1755370246538,-469.44645044,0.00020568,2]
[379688113,1755370246547,-480.0,0.00020568,2]
[379688114,1755370246556,-480.0,0.00020568,2]
[379688115,1755370246565,-480.0,0.00020568,2]
[379688116,1755370246574,-482.74680707,0.00020568,2]
[379688117,1755370246583,-480.0,0.00020568,2]
[379688118,1755370246592,-461.29878547,0.00020568,2]
[379688119,1755370246601,-480.0,0.00020568,2]
[379688120,1755370246610,-480.0,0.00020568,2]
[379688121,1755370246619,-480.0,0.00020568,2]
[379688122,1755370246628,-480.0,0.00020568,2]
[379688123,1755370246637,-480.0,0.00020568,2]
[379688124,1755370246646,-480.0,0.00020568,2]
[379688125,1755370246655,-480.0,0.00020568,2]
[379688126,1755370246665,-480.0,0.00020568,2]
[379688127,1755370246674,-460.0,0.00020568,2]
[379688128,1755370246684,-480.0,0.00020568,2]
[379688129,1755370246693,-480.0,0.00020568,2]
[379688130,1755370246703,-480.0,0.00020568,2]
[379688131,1755370246712,-1231.24,0.00020568,2]
[379688132,1755370246721,-480.0,0.00020568,2]
[379688133,1755370246730,-480.0,0.00020568,2]
[379688134,1755370246740,-466.19376159,0.00020568,2]
[379688135,1755370246749,-480.0,0.00020568,2]
[379688136,1755370246758,-480.0,0.00020568,2]
[379688137,1755370246768,-480.0,0.00020568,2]
[379688138,1755370246777,-480.0,0.00020568,2]
[379688139,1755370246786,-480.0,0.00020568,2]
[379688140,1755370246796,-480.0,0.00020568,2]
[379688141,1755370246805,-1000.0,0.00020568,2]
[379688142,1755370246815,-480.0,0.00020568,2]
[379688143,1755370246824,-480.0,0.00020568,2]
[379688144,1755370246833,-480.0,0.00020568,2]
[379688145,1755370246842,-460.0,0.00020568,2]
[379688146,1755370246851,-480.0,0.00020568,2]
[379688147,1755370246861,-461.19761266,0.00020568,2]
[379688148,1755370246870,-480.0,0.00020568,2]
[379688149,1755370246879,-480.0,0.00020568,2]
[379688150,1755370246889,-461.79772915,0.00020568,2]
[379688151,1755370246898,-480.0,0.00020568,2]
[379688152,1755370246906,-480.0,0.00020568,2]
[379688153,1755370246915,-513.91,0.00020568,2]
[379688154,1755370246924,-480.0,0.00020568,2]
[379688155,1755370246934,-480.0,0.00020568,2]
[379688156,1755370246943,-480.0,0.00020568,2]
[379688157,1755370246952,-480.0,0.00020568,2]
[379688158,1755370246963,-480.0,0.00020568,2]
[379688159,1755370246972,-320.57577777,0.00020568,2]
[379688160,1755370246981,-480.0,0.00020568,2]
[379688161,1755370246990,-480.0,0.00020568,2]
[379688162,1755370247000,-419.3236377,0.00020568,2]
[379688163,1755370247009,-480.0,0.00020568,2]
[379688164,1755370247018,-480.0,0.00020568,2]
[379688165,1755370247027,-480.0,0.00020568,2]
[379688166,1755370247036,-480.0,0.00020568,2]
[379688167,1755370247045,-480.0,0.00020568,2]
[379688168,1755370247054,-1163.526481,0.00020568,2]
[379688169,1755370247063,-1163.526481,0.00020568,2]
[379688170,1755370247072,-1163.526481,0.00020568,2]
[379688171,1755370247081,-1163.526481,0.00020568,2]
[379688172,1755370247090,-1163.526481,0.00020568,2]
[379688173,1755370247099,-1163.526481,0.00020568,2]
[379688174,1755370247108,-1163.526481,0.00020568,2]
[379688175,1755370247117,-1163.526481,0.00020568,2]
[379688176,1755370247126,-1163.526481,0.00020568,2]
[379688177,1755370247135,-1163.526481,0.00020568,2]
[379688178,1755370247144,-480.0,0.00020568,2]
[379688179,1755370247153,-480.0,0.00020568,2]
[379688180,1755370247163,-480.0,0.00020568,2]
[379688181,1755370247172,-421.45325621,0.00020568,2]
[379688182,1755370247182,-480.0,0.00020568,2]
[379688183,1755370247191,-480.0,0.00020568,2]
[379688184,1755370247201,-480.0,0.00020568,2]
[379688185,1755370247211,-480.0,0.00020568,2]
[379688186,1755370247221,-326.933142,0.00020568,2]
[379688187,1755370247230,-326.933142,0.00020568,2]
[379688188,1755370247240,-326.933142,0.00020568,2]
[379688189,1755370247250,-326.933142,0.00020568,2]
[379688190,1755370247265,-326.933142,0.00020568,2]
[379688191,1755370247282,-961.98,0.00020568,2]
[379688192,1755370247300,-480.0,0.00020568,2]
[379688193,1755370247311,-326.933142,0.00020568,2]
[379688194,1755370247320,-326.933142,0.00020568,2]
[379688195,1755370247329,-326.933142,0.00020568,2]
[379688196,1755370247338,-326.933142,0.00020568,2]
[379688197,1755370247347,-326.933142,0.00020568,2]
[379688198,1755370247363,-480.0,0.00020568,2]
[379688199,1755370247374,-480.0,0.00020568,2]
[379688200,1755370247391,-480.0,0.00020568,2]
[379688201,1755370247403,-500.0,0.00020568,2]
[379688202,1755370247412,-480.0,0.00020568,2]
[379688203,1755370247422,-193.25384,0.00020568,2]
[379688204,1755370247432,-193.25384,0.00020568,2]
[379688205,1755370247442,-193.25384,0.00020568,2]
[379688206,1755370247451,-193.25384,0.00020568,2]
[379688207,1755370247462,-193.25384,0.00020568,2]
[379688208,1755370247471,-486.66,0.00020568,2]
[379688209,1755370247480,-193.25384,0.00020568,2]
[379688210,1755370247490,-193.25384,0.00020568,2]
[379688211,1755370247499,-193.25384,0.00020568,2]
[379688212,1755370247508,-193.25384,0.00020568,2]
[379688213,1755370247516,-193.25384,0.00020568,2]
[379688214,1755370247526,-480.0,0.00020568,2]
[379688215,1755370247535,-480.0,0.00020568,2]
[379688216,1755370247544,-480.0,0.00020568,2]
[379688217,1755370247554,-480.0,0.00020568,2]
[379688218,1755370247564,-480.0,0.00020568,2]
[379688219,1755370247573,-480.0,0.00020568,2]
[379688220,1755370247582,-480.0,0.00020568,2]
[379688221,1755370247591,-480.0,0.00020568,2]
[379688222,1755370247600,-157.51942593,0.00020568,2]
[379688223,1755370247609,-480.0,0.00020568,2]
[379688224,1755370247619,-460.0,0.00020568,2]
[379688225,1755370247628,-480.0,0.00020568,2]
[379688226,1755370247637,-480.0,0.00020568,2]
[379688227,1755370247646,-480.0,0.00020568,2]
[379688228,1755370247655,-480.0,0.00020568,2]
[379688229,1755370247664,-480.0,0.00020568,2]
[379688230,1755370247673,-480.0,0.00020568,2]
[379688231,1755370247683,-480.0,0.00020568,2]
[379688232,1755370247692,-770.62,0.00020568,2]
[379688233,1755370247702,-480.0,0.00020568,2]
[379688234,1755370247711,-280.624582,0.00020568,2]
[379688235,1755370247720,-280.624582,0.00020568,2]
[379688236,1755370247729,-480.0,0.00020568,2]
[379688237,1755370247738,-280.624582,0.00020568,2]
[379688238,1755370247747,-280.624582,0.00020568,2]
[379688239,1755370247756,-480.0,0.00020568,2]
[379688240,1755370247765,-280.624582,0.00020568,2]
[379688241,1755370247774,-280.624582,0.00020568,2]
[379688242,1755370247784,-280.624582,0.00020568,2]
[379688243,1755370247793,-280.624582,0.00020568,2]
[379688244,1755370247802,-280.624582,0.00020568,2]
[379688245,1755370247811,-280.624582,0.00020568,2]
[379688246,1755370247820,-480.0,0.00020568,2]
[379688247,1755370247829,-480.0,0.00020568,2]
[379688248,1755370247839,-480.0,0.00020568,2]
[379688249,1755370247847,-480.0,0.00020568,2]
[379688250,1755370247857,-480.0,0.00020568,2]
[379688251,1755370247866,-480.0,0.00020568,2]
[379688252,1755370247875,-480.0,0.00020568,2]
[379688253,1755370247884,-328.99735469,0.00020568,2]
[379688254,1755370247894,-1046.91,0.00020568,2]
[379688255,1755370247903,-593.86,0.00020568,2]
[379688256,1755370247912,-480.0,0.00020568,2]
[379688257,1755370247922,-480.0,0.00020568,2]
[379688258,1755370247931,-480.0,0.00020568,2]
[379688259,1755370247940,-480.0,0.00020568,2]
[379688260,1755370247950,-480.0,0.00020568,2]
[379688261,1755370247959,-480.0,0.00020568,2]
[379688262,1755370247968,-480.0,0.00020568,2]
[379688263,1755370247977,-757.97,0.00020568,2]
[379688264,1755370247986,-480.0,0.00020568,2]
[379688265,1755370247995,-247.378836,0.00020568,2]
[379688266,1755370248005,-480.0,0.00020568,2]
[379688267,1755370248014,-247.378836,0.00020568,2]
[379688268,1755370248023,-151.0,0.00020568,2]
[379688269,1755370248032,-151.0,0.00020568,2]
[379688270,1755370248041,-151.0,0.00020568,2]
[379688271,1755370248050,-151.0,0.00020568,2]
[379688272,1755370248059,-151.0,0.00020568,2]
[379688273,1755370248068,-151.0,0.00020568,2]
[379688274,1755370248077,-247.378836,0.00020568,2]
[379688275,1755370248086,-247.378841,0.00020568,2]
[379688276,1755370248095,-151.0,0.00020568,2]
[379688277,1755370248104,-151.0,0.00020568,2]
[379688278,1755370248114,-151.0,0.00020568,2]
[379688279,1755370248123,-151.0,0.00020568,2]
[379688280,1755370248132,-237.309282,0.00020568,2]
[379688281,1755370248141,-480.0,0.00020568,2]
[379688282,1755370248151,-460.0,0.00020568,2]
[379688283,1755370248160,-480.0,0.00020568,2]
[379688284,1755370248169,-189.09214117,0.00020568,2]
[379688285,1755370248178,-480.0,0.00020568,2]
[379688286,1755370248188,-480.0,0.00020568,2]
[379688287,1755370248197,-1890.7,0.00020568,2]
[379688288,1755370248207,-480.0,0.00020568,2]
[379688289,1755370248216,-480.0,0.00020568,2]
[379688290,1755370248226,-480.0,0.00020568,2]
[379688291,1755370248235,-1454.89,0.00020568,2]
[379688292,1755370248245,-480.0,0.00020568,2]
[379688293,1755370248255,-1086.55,0.00020568,2]
[379688294,1755370248271,-480.0,0.00020568,2]
[379688295,1755370248281,-480.0,0.00020568,2]
[379688296,1755370248291,-460.0,0.00020568,2]
[379688297,1755370248300,-480.0,0.00020568,2]
[379688298,1755370248311,-480.0,0.00020568,2]
[379688299,1755370248321,-480.0,0.00020568,2]
[379688300,1755370248448,-480.0,0.00020568,2]
[379688301,1755370248459,-480.0,0.00020568,2]
[379688302,1755370248468,-480.0,0.00020568,2]
[379688303,1755370248478,-480.0,0.00020568,2]
[379688304,1755370248487,-480.0,0.00020568,2]
[379688305,1755370248496,-1106.59,0.00020568,2]
[379688306,1755370248506,-480.0,0.00020568,2]
[379688307,1755370248515,-3958.41,0.00020568,2]
[379688308,1755370248525,-181.44314166,0.00020568,2]
[379688309,1755370248534,-460.69659861,0.00020568,2]
[379688310,1755370248544,-151.0,0.00020568,2]
[379688311,1755370248554,-480.0,0.00020568,2]
[379688312,1755370248563,-480.0,0.00020568,2]
[379688313,1755370248573,-480.0,0.00020568,2]
[379688314,1755370248582,-460.0,0.00020568,2]
[379688315,1755370248591,-480.0,0.00020568,2]
[379688316,1755370248601,-592.42,0.00020568,2]
[379688317,1755370248610,-502.78690373,0.00020568,2]
[379688318,1755370248620,-500.0,0.00020569,2]
[379688319,1755370248629,-193.25384,0.00020569,2]
[379688320,1755370248638,-193.25384,0.00020569,2]
[379688321,1755370248647,-151.0,0.00020569,2]
[379688322,1755370248657,-480.0,0.0002057,2]
[379688323,1755370248667,-480.0,0.0002057,2]
[379688324,1755370248683,-393.39149614,0.0002057,2]
[379688325,1755370248695,-480.0,0.0002057,2]
[379688326,1755370248710,-480.0,0.0002057,2]
[379688327,1755370248719,-480.0,0.0002057,2]
[379688328,1755370248729,-1163.526481,0.0002057,2]
[379688329,1755370248738,-1163.526481,0.0002057,2]
[379688330,1755370248747,-1163.526481,0.0002057,2]
[379688331,1755370248757,-1163.526481,0.0002057,2]
[379688332,1755370248766,-480.0,0.0002057,2]
[379688333,1755370248776,-480.0,0.0002057,2]
[379688334,1755370248785,-326.933142,0.0002057,2]
[379688335,1755370248795,-480.0,0.0002057,2]
[379688336,1755370248804,-326.933147,0.0002057,2]
[379688337,1755370248813,-4280.03,0.0002057,2]
[379688338,1755370248823,-193.25384,0.0002057,2]
[379688339,1755370248832,-495.4,0.0002057,2]
[379688340,1755370248841,-480.0,0.0002057,2]
[379688341,1755370248850,-193.25384,0.0002057,2]
[379688342,1755370248860,-280.624582,0.0002057,2]
[379688343,1755370248869,-280.624582,0.0002057,2]
[379688344,1755370248879,-280.624582,0.0002057,2]
[379688345,1755370248888,-280.624582,0.0002057,2]
[379688346,1755370248897,-151.0,0.0002057,2]
[379688347,1755370248906,-200.0,0.00020571,2]
[379688348,1755370248915,-500.0,0.00020571,2]
[379688349,1755370248924,-500.0,0.00020571,2]
[379688350,1755370248935,-622.26462757,0.00020571,2]
[379688351,1755370248944,-151.0,0.00020572,2]
[379688352,1755370248953,-241.270586,0.00020572,2]
[379688353,1755370248962,-151.0,0.00020572,2]
[379688354,1755370248971,-270.386051,0.00020572,2]
[379688355,1755370248981,-270.386051,0.00020572,2]
[379688356,1755370248991,-1163.526481,0.00020572,2]
[379688357,1755370249001,-1163.526485,0.00020572,2]
[379688358,1755370249011,-193.25384,0.00020572,2]
[379688359,1755370249020,-193.25384,0.00020572,2]
[379688360,1755370249030,-193.25384,0.00020572,2]
[379688361,1755370249039,-193.253833,0.00020572,2]
[379688362,1755370249048,-280.624582,0.00020572,2]
[379688363,1755370249058,-280.624588,0.00020572,2]
[379688364,1755370249068,-151.0,0.00020572,2]
[379688365,1755370249077,-151.0,0.00020572,2]
[379688366,1755370249086,-500.0,0.00020573,2]
[379688367,1755370249096,-500.0,0.00020573,2]
[379688368,1755370249106,-500.0,0.00020573,2]
[379688369,1755370249116,-500.0,0.00020573,2]
[379688370,1755370249127,-500.0,0.00020573,2]
[379688371,1755370249136,-627.41450462,0.00020573,2]
[379688372,1755370249147,-151.0,0.00020573,2]
[379688373,1755370249156,-151.0,0.00020573,2]
[379688374,1755370249166,-270.386051,0.00020573,2]
[379688375,1755370249175,-270.386051,0.00020573,2]
[379688376,1755370249188,-151.0,0.00020576,2]
[379688377,1755370249198,-151.0,0.00020576,2]
[379688378,1755370249208,-151.0,0.00020576,2]
[379688379,1755370249218,-225.615014,0.00020576,2]
[379688380,1755370249227,-225.615014,0.00020576,2]
[379688381,1755370249237,-151.0,0.00020576,2]
[379688382,1755370249246,-270.386051,0.00020576,2]
[379688383,1755370249257,-270.386051,0.00020576,2]
[379688384,1755370249272,-154.510085,0.00020577,2]
[379688385,1755370249288,-154.510085,0.00020577,2]
[379688386,1755370249298,-151.0,0.00020577,2]
[379688387,1755370249307,-151.0,0.00020577,2]
[379688388,1755370249316,-260.564567,0.00020577,2]
[379688389,1755370249325,-228.142795,0.00020577,2]
[379688390,1755370249335,-151.000001,0.00020577,2]
[379688391,1755370249344,-844.456935,0.00020577,2]
[379688392,1755370249353,-844.456935,0.00020577,2]
[379688393,1755370249363,-151.0,0.00020577,2]
[379688394,1755370249372,-225.615014,0.00020577,2]
[379688395,1755370249381,-225.615014,0.00020577,2]
[379688396,1755370249391,-17115.36476331,0.00020579,2]
[379688397,1755370249400,-215.224806,0.00020579,2]
[379688398,1755370249409,-215.224806,0.00020579,2]
[379688399,1755370249419,-151.0,0.00020579,2]
[379688400,1755370249432,-151.0,0.00020582,2]
[379688401,1755370249444,-270.386051,0.00020582,2]
[379688402,1755370249453,-270.386051,0.00020582,2]
[379688403,1755370249462,-154.510085,0.00020583,2]
[379688404,1755370249471,-154.510085,0.00020583,2]
[379688405,1755370249480,-151.0,0.00020583,2]
[379688406,1755370249490,-151.0,0.00020583,2]
[379688407,1755370249499,-844.456935,0.00020583,2]
[379688408,1755370249508,-844.456935,0.00020583,2]
[379688409,1755370249517,-151.0,0.000206,3]
[379688410,1755370249527,-153.0,0.000206,2]
[379688411,1755370249535,-293.7439445,0.000206,2]
[379688412,1755370249544,-153.0,0.000206,2]
[379688413,1755370249553,-153.0,0.000206,2]
[379688414,1755370249562,-293.7439445,0.000206,2]
[379688415,1755370249573,-153.0,0.000206,2]
[379688416,1755370249582,-293.7439445,0.000206,2]
[379688417,1755370249591,-153.0,0.000206,2]
[379688418,1755370249600,-273.18483354,0.000206,2]
[379688419,1755370249617,-20.55911096,0.000206,2]
[379688420,1755370249626,-306.0,0.000206,2]
[379688421,1755370249635,-151.0,0.000206,4]
[379688422,1755370249645,-480.0,0.0002064,2]
[379688423,1755370249654,-922.39,0.0002064,2]
[379688424,1755370249664,-1311.84,0.0002064,2]
[379688425,1755370249673,-4180.0,0.0002064,2]
[379688426,1755370249683,-480.0,0.0002064,2]
[379688427,1755370249692,-933.8,0.0002064,2]
[379688428,1755370249701,-480.0,0.00020641,2]
[379688429,1755370249710,-481.13418584,0.00020641,2]
[379688430,1755370249719,-317.52455103,0.00020641,2]
[379688431,1755370249729,-500.0,0.00020641,2]
[379688432,1755370249739,-489.77,0.00020641,2]
[379688433,1755370249748,-480.0,0.00020641,2]
[379688434,1755370249758,-480.0,0.00020641,2]
[379688435,1755370249768,-480.0,0.00020641,2]
[379688436,1755370249777,-480.0,0.00020641,2]
[379688437,1755370249786,-480.0,0.00020641,2]
[379688438,1755370249796,-480.0,0.00020641,2]
[379688439,1755370249806,-480.0,0.00020641,2]
[379688440,1755370249816,-1252.77,0.00020641,2]
[379688441,1755370249826,-480.0,0.00020641,2]
[379688442,1755370249835,-480.0,0.00020641,2]
[379688443,1755370249844,-480.0,0.00020641,2]
[379688444,1755370249853,-760.26,0.00020641,2]
[379688445,1755370249862,-480.0,0.00020641,2]
[379688446,1755370249871,-480.0,0.00020641,2]
[379688447,1755370249881,-480.0,0.00020641,2]
[379688448,1755370249890,-460.0,0.00020641,2]
[379688449,1755370249900,-1167.48,0.00020641,2]
[379688450,1755370249909,-519.31,0.00020641,2]
[379688451,1755370249919,-2086.99,0.00020641,2]
[379688452,1755370249928,-480.0,0.00020641,2]
[379688453,1755370249938,-440.0,0.00020641,2]
[379688454,1755370249947,-268.4661206,0.00020641,2]
[379688455,1755370249956,-480.0,0.00020641,2]
[379688456,1755370249966,-2671.54,0.00020641,2]
[379688457,1755370249975,-353.34086013,0.00020641,2]
[379688458,1755370249984,-480.0,0.00020641,2]
[379688459,1755370249993,-623.48,0.00020641,2]
[379688460,1755370250003,-480.0,0.00020641,2]
[379688461,1755370250012,-3868.54,0.00020641,2]
[379688462,1755370250021,-480.0,0.00020641,2]
[379688463,1755370250030,-530.24,0.00020641,2]
[379688464,1755370250040,-638.13,0.00020641,2]
[379688465,1755370250050,-536.05,0.00020641,2]
[379688466,1755370250059,-340.0,0.00020641,2]
[379688467,1755370250069,-480.0,0.00020641,2]
[379688468,1755370250078,-460.0,0.00020641,2]
[379688469,1755370250087,-3057.27,0.00020641,2]
[379688470,1755370250097,-496.93350049,0.00020641,2]
[379688471,1755370250106,-1017.77,0.00020641,2]
[379688472,1755370250115,-499.85,0.00020641,2]
[379688473,1755370250125,-480.0,0.00020641,2]
[379688474,1755370250138,-480.0,0.00020641,2]
[379688475,1755370250148,-1185.62,0.00020641,2]
[379688476,1755370250157,-480.0,0.00020641,2]
[379688477,1755370250167,-546.55,0.00020641,2]
[379688478,1755370250176,-627.41450462,0.00020642,2]
[379688479,1755370250187,-151.0,0.000207,4]
[379688480,1755370250196,-151.0,0.000207,4]
[379688481,1755370250206,-151.0,0.0002074,2]
[379688482,1755370250215,-500.0,0.0002074,2]
[379688483,1755370250225,-500.0,0.0002074,2]
[379688484,1755370250236,-500.0,0.0002074,2]
[379688485,1755370250245,-500.0,0.0002074,2]
[379688486,1755370250255,-151.0,0.0002074,2]
[379688487,1755370250269,-151.0,0.0002074,2]
[379688488,1755370250279,-480.0,0.0002074,2]
[379688489,1755370250288,-480.0,0.0002074,2]
[379688490,1755370250298,-480.0,0.0002074,2]
[379688491,1755370250307,-513.85757812,0.0002074,2]
[379688492,1755370250317,-480.0,0.0002074,2]
[379688493,1755370250326,-480.0,0.0002074,2]
[379688494,1755370250336,-480.0,0.0002074,2]
[379688495,1755370250347,-480.0,0.0002074,2]
[379688496,1755370250356,-480.0,0.0002074,2]
[379688497,1755370250367,-1503.24,0.0002074,2]
[379688498,1755370250377,-480.0,0.0002074,2]
[379688499,1755370250387,-2716.49,0.0002074,2]
[379688500,1755370250399,-1231.3,0.0002074,2]
[379688501,1755370250410,-480.0,0.0002074,2]
[379688502,1755370250420,-480.0,0.0002074,2]
[379688503,1755370250430,-480.0,0.0002074,2]
[379688504,1755370250440,-789.45,0.0002074,2]
[379688505,1755370250572,-994.48,0.0002074,2]
[379688506,1755370250582,-480.0,0.0002074,2]
[379688507,1755370250592,-480.0,0.0002074,2]
[379688508,1755370250602,-480.0,0.0002074,2]
[379688509,1755370250611,-480.0,0.0002074,2]
[379688510,1755370250620,-480.0,0.0002074,2]
[379688511,1755370250630,-480.0,0.0002074,2]
[379688512,1755370250640,-1004.59,0.0002074,2]
[379688513,1755370250650,-1469.18,0.0002074,2]
[379688514,1755370250659,-566.63,0.0002074,2]
[379688515,1755370250669,-1055.31,0.0002074,2]
[379688516,1755370250678,-1385.94,0.0002074,2]
[379688517,1755370250688,-1225.5,0.0002074,2]
[379688518,1755370250697,-480.0,0.0002074,2]
[379688519,1755370250707,-480.0,0.0002074,2]
[379688520,1755370250715,-480.0,0.0002074,2]
[379688521,1755370250725,-646.67,0.0002074,2]
[379688522,1755370250735,-460.0,0.0002074,2]
[379688523,1755370250745,-7953.08,0.0002074,2]
[379688524,1755370250755,-480.0,0.0002074,2]
[379688525,1755370250765,-480.0,0.0002074,2]
[379688526,1755370250774,-480.0,0.0002074,2]
[379688527,1755370250784,-480.0,0.0002074,2]
[379688528,1755370250795,-1799.08,0.0002074,2]
[379688529,1755370250804,-776.05,0.0002074,2]
[379688530,1755370250814,-595.78632833,0.0002074,2]
[379688531,1755370250826,-460.0,0.0002074,2]
[379688532,1755370250835,-1133.57,0.0002074,2]
[379688533,1755370250845,-553.1,0.0002074,2]
[379688534,1755370250855,-480.0,0.0002074,2]
[379688535,1755370250864,-480.0,0.0002074,2]
[379688536,1755370250878,-541.55,0.0002074,2]
[379688537,1755370250887,-480.0,0.0002074,2]
[379688538,1755370250896,-578.48,0.0002074,2]
[379688539,1755370250906,-480.0,0.0002074,2]
[379688540,1755370250915,-299.10817248,0.0002074,2]
[379688541,1755370250924,-440.0,0.0002074,2]
[379688542,1755370250935,-1351.33,0.0002074,2]
[379688543,1755370250944,-5430.81,0.0002074,2]
[379688544,1755370250953,-480.0,0.0002074,2]
[379688545,1755370250962,-480.0,0.0002074,2]
[379688546,1755370250972,-480.0,0.0002074,2]
[379688547,1755370250981,-1336.87,0.0002074,2]
[379688548,1755370250990,-480.0,0.0002074,2]